bitfinex/quotes_BTCUSD_20250727
["timestamp","ask_amount","ask_price","bid_price","bid_amount"]
[1753655597341,0.95914048,119860.0,119850.0,0.06139]
[1753655598125,0.83146048,119860.0,119850.0,0.06139]
[1753655598495,0.96115048,119860.0,119850.0,0.06139]
[1753655602247,1.21192941,119860.0,119850.0,0.06139]
[1753655603675,1.23676376,119860.0,119850.0,0.06139]
[1753655605417,0.7352059,119860.0,119850.0,0.06139]
[1753655605688,1.23676376,119860.0,119850.0,0.06139]
[1753655609867,0.7352059,119860.0,119850.0,0.06139]
[1753655610099,1.23676376,119860.0,119850.0,0.06139]
[1753655612483,0.7352059,119860.0,119850.0,0.06139]
[1753655612682,1.23676376,119860.0,119850.0,0.06139]
[1753655612912,0.98598483,119860.0,119850.0,0.06139]
[1753655614119,0.7352059,119860.0,119850.0,0.06139]
[1753655614325,0.98598483,119860.0,119850.0,0.06139]
[1753655620556,1.23676376,119860.0,119850.0,0.05833]
[1753655621789,1.23676376,119860.0,119850.0,0.05622]
[1753655623289,1.24459093,119860.0,119850.0,0.05622]
[1753655623523,1.30450995,119860.0,119850.0,0.001]
[1753655623742,1.28941041,119860.0,119850.0,0.001]
[1753655624056,1.03549148,119860.0,119850.0,0.001]
[1753655624364,1.28627041,119860.0,119850.0,0.05856]
[1753655624563,0.78471255,119860.0,119850.0,0.05856]
[1753655624825,1.28627041,119860.0,119850.0,0.05856]
[1753655626078,0.76048255,119860.0,119850.0,0.05856]
[1753655626278,0.76048255,119860.0,119850.0,0.0607]
[1753655626494,1.00925148,119860.0,119850.0,0.0637]
[1753655626690,1.00142385,119860.0,119850.0,0.0637]
[1753655628385,0.321,119860.0,119850.0,0.23057526]
[1753655628586,0.63222717,119860.0,119850.0,0.23057526]
[1753655628828,0.89134874,119860.0,119850.0,0.23057526]
[1753655630192,0.64056981,119860.0,119850.0,0.23057526]
[1753655630443,0.89134874,119860.0,119850.0,0.23057526]
[1753655631115,0.8830061,119860.0,119850.0,0.23057526]
[1753655632479,0.87466325,119860.0,119850.0,0.23057526]
[1753655632730,0.62388432,119860.0,119850.0,0.23057526]
[1753655632966,0.87466325,119860.0,119850.0,0.23057526]
[1753655633390,0.86714325,119860.0,119850.0,0.23057526]
[1753655634029,0.61636432,119860.0,119850.0,0.23891902]
[1753655634248,0.61636432,119860.0,119850.0,0.23057526]
[1753655634452,0.86714325,119860.0,119850.0,0.23057526]
[1753655640565,0.61636432,119860.0,119850.0,0.23057526]
[1753655640790,0.86714325,119860.0,119850.0,0.23057526]
[1753655643236,0.86918325,119860.0,119850.0,0.23057526]
[1753655643429,0.86918325,119860.0,119850.0,0.0637]
[1753655646312,0.86918325,119860.0,119850.0,0.23057526]
[1753655646702,0.86918325,119860.0,119850.0,0.0637]
[1753655647835,1.22748948,119860.0,119850.0,0.034]
[1753655648041,1.23061948,119860.0,119850.0,0.001]
[1753655648240,1.2480685,119860.0,119850.0,0.001]
[1753655656328,1.25589396,119860.0,119850.0,0.001]
[1753655657531,1.2480685,119860.0,119850.0,0.001]
[1753655658913,0.74651064,119860.0,119850.0,0.001]
[1753655659110,1.2449385,119860.0,119850.0,0.001]
[1753655660385,1.2480585,119860.0,119850.0,0.001]
[1753655662986,0.99727957,119860.0,119850.0,0.001]
[1753655663197,0.99415957,119860.0,119850.0,0.001]
[1753655664488,1.64819785,119860.0,119850.0,0.001]
[1753655664702,1.60602265,119860.0,119850.0,0.001]
[1753655664923,1.37831236,119860.0,119850.0,0.001]
[1753655665090,0.8767545,119860.0,119850.0,0.001]
[1753655665294,1.37831236,119860.0,119850.0,0.001]
[1753655665500,1.3626613,119860.0,119850.0,0.001]
[1753655665705,1.3636613,119860.0,119850.0,0.001]
[1753655666087,0.5326679,119850.0,119840.0,9.998]
[1753655666303,1.02048893,119850.0,119840.0,9.998]
[1753655666503,1.03982413,119850.0,119840.0,9.998]
[1753655666734,1.06489213,119850.0,119840.0,9.998]
[1753655666953,1.08149213,119850.0,119840.0,9.998]
[1753655667193,1.33227106,119850.0,119840.0,9.998]
[1753655667411,0.8307132,119850.0,119840.0,9.999]
[1753655667628,1.33227106,119850.0,119840.0,9.999]
[1753655667851,1.34009311,119850.0,119840.0,9.999]
[1753655668295,1.33227106,119850.0,119840.0,9.999]
[1753655668733,1.34009311,119850.0,119840.0,9.999]
[1753655669645,0.83853525,119850.0,119840.0,9.999]
[1753655669879,1.32349311,119850.0,119840.0,9.999]
[1753655670360,1.06961418,119850.0,119840.0,9.999]
[1753655670590,1.06179213,119850.0,119840.0,9.999]
[1753655670842,1.29747106,119850.0,119840.0,9.999]
[1753655672829,1.31327106,119850.0,119840.0,9.999]
[1753655674589,0.76074773,119850.0,119840.0,10.05847]
[1753655674796,0.18356243,119850.0,119840.0,10.05847]
[1753655675015,0.02503002,119850.0,119840.0,10.48448256]
[1753655675233,0.14544647,119850.0,119840.0,10.25039226]
[1753655675452,0.91978825,119850.0,119840.0,10.22535918]
[1753655675885,0.78268491,119850.0,119840.0,10.22535918]
[1753655676345,0.9030615,119850.0,119840.0,10.22535918]
[1753655677869,0.89471788,119850.0,119840.0,10.22535918]
[1753655679079,0.97849367,119850.0,119840.0,10.22535918]
[1753655680384,0.64393895,119850.0,119840.0,10.22535918]
[1753655684560,0.66062619,119850.0,119840.0,10.23370363]
[1753655684791,0.66062619,119850.0,119840.0,10.22535918]
[1753655685646,0.99518091,119850.0,119840.0,9.999]
[1753655685818,1.07965821,119850.0,119840.0,10.22605918]
[1753655686022,0.74510349,119850.0,119840.0,10.22605918]
[1753655687011,0.73676001,119850.0,119840.0,10.22605918]
[1753655688530,0.72841632,119850.0,119840.0,10.22605918]
[1753655688935,0.72841632,119850.0,119840.0,10.05917]
[1753655690388,1.06297104,119850.0,119840.0,10.05917]
[1753655691179,1.06297104,119850.0,119840.0,10.22605918]
[1753655691395,0.72841632,119850.0,119840.0,10.22605918]
[1753655700803,0.72841632,119850.0,119840.0,10.47694144]
[1753655701231,0.72841632,119850.0,119840.0,10.22605918]
[1753655703910,0.72841632,119850.0,119840.0,10.05917]
[1753655705286,1.0382976,119850.0,119840.0,9.999]
[1753655705508,1.0412976,119850.0,119840.0,9.999]
[1753655705941,1.0382976,119850.0,119840.0,9.999]
[1753655706151,1.0229976,119850.0,119840.0,9.999]
[1753655706367,0.77211534,119850.0,119840.0,9.999]
[1753655706811,1.0229976,119850.0,119840.0,9.999]
[1753655711814,1.0229976,119850.0,119840.0,10.02319]
[1753655712038,0.74446534,119850.0,119840.0,10.06068]
[1753655712707,0.9953476,119850.0,119840.0,10.06068]
[1753655714355,0.74446534,119850.0,119840.0,10.06068]
[1753655714572,0.74446534,119850.0,119840.0,10.22756918]
[1753655714744,0.74446534,119850.0,119840.0,10.06068]
[1753655715304,0.74446534,119850.0,119840.0,10.31156226]
[1753655716464,0.74446534,119850.0,119840.0,10.06068]
[1753655720106,0.75280889,119850.0,119840.0,10.2359135]
[1753655720276,0.73535945,119850.0,119840.0,10.48679582]
[1753655720476,0.74370307,119850.0,119840.0,10.49514014]
[1753655720820,0.74370307,119850.0,119840.0,10.22756918]
[1753655720821,0.72701618,119850.0,119840.0,10.22756918]
[1753655721028,0.72701618,119850.0,119840.0,10.06068]
[1753655721903,0.72701618,119850.0,119840.0,10.22756918]
[1753655722325,0.72701618,119850.0,119840.0,10.23591363]
[1753655722745,0.72701618,119850.0,119840.0,10.22756918]
[1753655722951,0.72701618,119850.0,119840.0,10.47845144]
[1753655724025,0.72701618,119850.0,119840.0,10.06068]
[1753655728549,0.72701618,119850.0,119840.0,10.22756918]
[1753655730706,0.71867256,119850.0,119840.0,10.22756918]
[1753655737728,0.71867256,119850.0,119840.0,10.47845144]
[1753655737940,0.71867256,119850.0,119840.0,10.22756918]
[1753655739820,0.72701618,119850.0,119840.0,10.48679589]
[1753655740015,0.34694341,119850.0,119840.0,10.48679589]
[1753655740263,0.48308661,119850.0,119840.0,10.51182815]
[1753655740491,0.49143016,119850.0,119840.0,10.50348425]
[1753655740704,0.49143009,119850.0,119840.0,10.50348425]
[1753655740920,0.48308661,119850.0,119840.0,10.51182822]
[1753655741369,0.48308661,119850.0,119840.0,10.51182829]
[1753655741598,0.49143009,119850.0,119840.0,10.25260199]
[1753655741810,0.49143009,119850.0,119840.0,10.50348425]
[1753655742018,0.49977371,119850.0,119840.0,10.50348425]
[1753655742236,0.49143009,119850.0,119840.0,10.51182829]
[1753655742963,0.48308661,119850.0,119840.0,10.52017226]
[1753655743513,0.48308661,119850.0,119840.0,10.51182829]
[1753655743732,0.49143016,119850.0,119840.0,10.51182829]
[1753655743933,0.48308654,119850.0,119840.0,10.51182829]
[1753655744428,0.48308654,119850.0,119840.0,10.50348425]
[1753655744607,0.48308654,119850.0,119840.0,10.51182829]
[1753655744809,0.48308654,119850.0,119840.0,10.52017226]
[1753655745034,0.48308654,119850.0,119840.0,10.50348425]
[1753655745252,0.4747432,119850.0,119840.0,10.50348425]
[1753655745454,0.48308661,119850.0,119840.0,10.25260199]
[1753655745611,0.48308661,119850.0,119840.0,10.50348425]
[1753655746897,0.48308661,119850.0,119840.0,10.51182829]
[1753655747716,0.48308661,119850.0,119840.0,10.50348425]
[1753655748309,0.4747432,119850.0,119840.0,10.51182829]
[1753655748469,0.48308654,119850.0,119840.0,10.51182829]
[1753655748674,0.49143002,119850.0,119840.0,10.49514014]
[1753655748874,0.49143002,119850.0,119840.0,10.50348425]
[1753655749401,0.49143002,119850.0,119840.0,10.25260206]
[1753655749822,0.49143002,119850.0,119840.0,10.51182843]
[1753655750027,0.48308654,119850.0,119840.0,10.51182843]
[1753655750259,0.49143002,119850.0,119840.0,10.50348432]
[1753655750474,0.49143002,119850.0,119840.0,10.49514014]
[1753655750686,0.48308661,119850.0,119840.0,10.51182843]
[1753655751550,0.48308654,119850.0,119840.0,10.52017247]
[1753655751764,0.48308654,119850.0,119840.0,10.51182802]
[1753655751973,0.48308654,119850.0,119840.0,10.52017199]
[1753655752181,0.48308654,119850.0,119840.0,10.51182802]
[1753655753009,0.48308654,119850.0,119840.0,10.50348398]
[1753655753224,0.48308654,119850.0,119840.0,10.51182802]
[1753655753434,0.49143002,119850.0,119840.0,10.25260172]
[1753655753644,0.49143002,119850.0,119840.0,10.49513987]
[1753655754076,0.48308654,119850.0,119840.0,10.50348398]
[1753655754295,0.49143002,119850.0,119840.0,10.50348398]
[1753655754714,0.48308654,119850.0,119840.0,10.50348398]
[1753655754895,0.49143002,119850.0,119840.0,10.50348398]
[1753655755245,0.48308654,119850.0,119840.0,10.51182802]
[1753655755453,0.49143002,119850.0,119840.0,10.25260172]
[1753655755702,0.49143002,119850.0,119840.0,10.50348398]
[1753655755907,0.49142995,119850.0,119840.0,10.50348398]
[1753655756102,0.49142995,119850.0,119840.0,10.25260172]
[1753655756329,0.49142995,119850.0,119840.0,10.51182802]
[1753655756535,0.49142995,119850.0,119840.0,10.50348398]
[1753655757758,0.49142995,119850.0,119840.0,10.51182802]
[1753655757976,0.49142995,119850.0,119840.0,10.50348398]
[1753655759566,0.4747432,119850.0,119840.0,10.51182802]
[1753655759849,0.48308654,119850.0,119840.0,10.51182802]
[1753655760053,0.48308654,119850.0,119840.0,10.50348398]
[1753655760458,0.49143002,119850.0,119840.0,10.50348398]
[1753655760917,0.48308654,119850.0,119840.0,10.50348398]
[1753655761136,0.48308654,119850.0,119840.0,10.51182802]
[1753655762157,0.4747432,119850.0,119840.0,10.51182802]
[1753655762525,0.4747432,119850.0,119840.0,10.52017199]
[1753655762730,0.48308654,119850.0,119840.0,10.51182802]
[1753655762944,0.48308654,119850.0,119840.0,10.50348398]
[1753655763151,0.49143002,119850.0,119840.0,10.50348398]
[1753655763365,0.48308654,119850.0,119840.0,10.50348398]
[1753655764242,0.48308654,119850.0,119840.0,10.51182802]
[1753655764526,0.48308654,119850.0,119840.0,10.51082802]
[1753655764761,0.48308654,119850.0,119840.0,10.51182802]
[1753655764978,0.48308654,119850.0,119840.0,10.51082802]
[1753655765394,0.49142995,119850.0,119840.0,10.51282802]
[1753655765639,0.4747432,119850.0,119840.0,10.52117199]
[1753655765862,0.48308654,119850.0,119840.0,10.51282802]
[1753655766075,0.48308654,119850.0,119840.0,10.51382802]
[1753655767362,0.47474313,119850.0,119840.0,10.77305425]
[1753655767716,0.4830864,119850.0,119840.0,10.52217199]
[1753655768125,0.4830864,119850.0,119840.0,10.51382802]
[1753655768329,0.4830864,119850.0,119840.0,10.52217199]
[1753655768750,0.47474313,119850.0,119840.0,10.52217199]
[1753655769020,0.4830864,119850.0,119840.0,10.52217199]
[1753655769803,0.4830864,119850.0,119840.0,10.51382802]
[1753655770521,0.4830864,119850.0,119840.0,10.52217199]
[1753655771561,0.4830864,119850.0,119840.0,10.51182802]
[1753655771779,0.4830864,119850.0,119840.0,10.26928973]
[1753655772143,0.4830864,119850.0,119840.0,10.26094576]
[1753655772355,0.4830864,119850.0,119840.0,10.25994576]
[1753655772560,0.4830864,119850.0,119840.0,10.26294576]
[1753655773014,0.49142981,119850.0,119840.0,10.25460172]
[1753655773446,0.4830864,119850.0,119840.0,10.51382795]
[1753655773667,0.4830864,119850.0,119840.0,10.52217199]
[1753655773878,0.4747432,119850.0,119840.0,10.52317199]
[1753655774095,0.4747432,119850.0,119840.0,10.27228973]
[1753655774671,0.4747432,119850.0,119840.0,10.52317199]
[1753655775825,0.4664,119850.0,119840.0,10.52317199]
[1753655775974,0.47474313,119850.0,119840.0,10.52317199]
[1753655776801,0.4664,119850.0,119840.0,10.52317199]
[1753655777022,0.1278,119850.0,119840.0,10.35676703]
[1753655777222,0.1278,119850.0,119840.0,10.85853155]
[1753655779281,0.1278,119850.0,119840.0,10.77405425]
[1753655785022,0.600449,119870.0,119860.0,0.21265017]
[1753655785228,0.260449,119870.0,119860.0,0.75987004]
[1753655785429,0.388969,119870.0,119860.0,0.75987004]
[1753655787031,0.388969,119870.0,119860.0,0.78405643]
[1753655787236,0.388969,119870.0,119860.0,0.75987004]
[1753655787237,0.383969,119870.0,119860.0,0.75987004]
[1753655789048,0.383969,119870.0,119860.0,0.25810552]
[1753655789254,0.384969,119870.0,119860.0,0.75987004]
[1753655792468,0.383969,119870.0,119860.0,0.75987004]
[1753655794197,0.383969,119870.0,119860.0,0.76087004]
[1753655797111,0.383969,119870.0,119860.0,0.25910552]
[1753655797318,0.383969,119870.0,119860.0,0.76087004]
[1753655799938,0.39231074,119870.0,119860.0,0.76087004]
[1753655800153,0.39231081,119870.0,119860.0,0.76087004]
[1753655800357,0.383969,119870.0,119860.0,0.76087004]
[1753655800564,0.39231081,119870.0,119860.0,0.50998778]
[1753655801042,0.40065276,119870.0,119860.0,0.25910552]
[1753655801258,0.40065276,119870.0,119860.0,0.50998778]
[1753655801457,0.40065276,119870.0,119860.0,0.25910552]
[1753655801705,0.40065276,119870.0,119860.0,0.50998778]
[1753655802134,0.39231081,119870.0,119860.0,0.50998778]
[1753655802347,0.40065276,119870.0,119860.0,0.50998778]
[1753655802541,0.39231081,119870.0,119860.0,0.50998778]
[1753655802973,0.40065276,119870.0,119860.0,0.50998778]
[1753655803389,0.39231081,119870.0,119860.0,0.50998778]
[1753655803640,0.40065276,119870.0,119860.0,0.50998778]
[1753655803832,0.39231081,119870.0,119860.0,0.50998778]
[1753655804417,0.40065269,119870.0,119860.0,0.50998778]
[1753655805275,0.39231081,119870.0,119860.0,0.50998778]
[1753655805837,0.40065276,119870.0,119860.0,0.50998778]
[1753655806071,0.39231081,119870.0,119860.0,0.50998778]
[1753655806480,0.39231081,119870.0,119860.0,0.25910552]
[1753655806732,0.39231081,119870.0,119860.0,0.50998778]
[1753655807829,0.40065276,119870.0,119860.0,0.50998778]
[1753655808649,0.39231081,119870.0,119860.0,0.50998778]
[1753655809165,0.40065276,119870.0,119860.0,0.50998778]
[1753655809380,0.39231081,119870.0,119860.0,0.50998778]
[1753655809590,0.40065269,119870.0,119860.0,0.25910552]
[1753655809798,0.40899471,119870.0,119860.0,0.50998778]
[1753655811295,0.40065269,119870.0,119860.0,0.25910552]
[1753655811503,0.40065269,119870.0,119860.0,0.50998778]
[1753655811835,0.40065269,119870.0,119860.0,0.25910552]
[1753655812029,0.40065269,119870.0,119860.0,0.50998778]
[1753655812646,0.40899464,119870.0,119860.0,0.50998778]
[1753655815345,0.41733666,119870.0,119860.0,0.50998778]
[1753655816077,0.41733666,119870.0,119860.0,0.23407725]
[1753655816282,0.41937694,119870.0,119860.0,0.50164514]
[1753655816497,0.29085694,119870.0,119860.0,0.50998778]
[1753655816697,0.39387088,119870.0,119860.0,0.51833035]
[1753655817413,0.40221283,119870.0,119860.0,0.51833035]
[1753655818404,0.39387088,119870.0,119860.0,0.51833035]
[1753655818576,0.39387088,119870.0,119860.0,0.26744809]
[1753655818847,0.39387088,119870.0,119860.0,0.51833035]
[1753655819435,0.4022129,119870.0,119860.0,0.51833035]
[1753655819647,0.39387088,119870.0,119860.0,0.51833035]
[1753655819808,0.40221283,119870.0,119860.0,0.51833035]
[1753655821014,0.41055492,119870.0,119860.0,0.26744809]
[1753655821258,0.40221283,119870.0,119860.0,0.51833035]
[1753655821462,0.66977948,119870.0,119860.0,0.21667288]
[1753655821813,0.41889715,119870.0,119860.0,0.22501552]
[1753655822024,0.41055492,119870.0,119860.0,0.50337035]
[1753655822235,0.41055492,119870.0,119860.0,0.51887035]
[1753655822699,0.41055492,119870.0,119860.0,0.26798809]
[1753655822930,0.41055492,119870.0,119860.0,0.51887035]
[1753655825115,0.41055485,119870.0,119860.0,0.51887035]
[1753655825326,0.41889701,119870.0,119860.0,0.51887035]
[1753655825761,0.41055485,119870.0,119860.0,0.51887035]
[1753655826186,0.41889701,119870.0,119860.0,0.51887035]
[1753655827637,0.41055485,119870.0,119860.0,0.51887035]
[1753655828052,0.41889701,119870.0,119860.0,0.51887035]
[1753655829884,0.41055485,119870.0,119860.0,0.51887035]
[1753655830560,0.41889701,119870.0,119860.0,0.51887035]
[1753655830823,0.41055485,119870.0,119860.0,0.51887035]
[1753655831054,0.41889701,119870.0,119860.0,0.26798809]
[1753655831331,0.41889701,119870.0,119860.0,0.51887035]
[1753655831779,0.41055485,119870.0,119860.0,0.51887035]
[1753655832032,0.41889701,119870.0,119860.0,0.51887035]
[1753655832270,0.41417701,119870.0,119860.0,0.51887035]
[1753655832485,0.41417701,119870.0,119860.0,0.26798809]
[1753655832733,0.41417701,119870.0,119860.0,0.51887035]
[1753655834425,0.41417701,119870.0,119860.0,0.26798809]
[1753655834868,0.41417701,119870.0,119860.0,0.51887035]
[1753655836958,0.40583485,119870.0,119860.0,0.51887035]
[1753655837444,0.40379485,119870.0,119860.0,0.51887035]
[1753655837969,0.39545283,119870.0,119860.0,0.51887035]
[1753655838427,0.38711088,119870.0,119860.0,0.26798809]
[1753655838926,0.38711088,119870.0,119860.0,0.51887035]
[1753655839353,0.40379499,119870.0,119860.0,0.51887035]
[1753655839598,0.39545283,119870.0,119860.0,0.51887035]
[1753655840319,0.40379499,119870.0,119860.0,0.26798809]
[1753655840547,1.22578164,119870.0,119860.0,0.001]
[1753655840770,1.64126141,119870.0,119860.0,0.001]
[1753655841206,1.39037915,119870.0,119860.0,0.001]
[1753655841440,1.3825498,119870.0,119860.0,0.001]
[1753655842813,1.31489938,119870.0,119860.0,0.001]
[1753655849421,1.06401712,119870.0,119860.0,0.001]
[1753655849609,1.31489938,119870.0,119860.0,0.001]
[1753655856601,1.30489938,119870.0,119860.0,0.001]
[1753655858581,1.28869938,119870.0,119860.0,0.001]
[1753655859202,1.05381712,119870.0,119860.0,0.001]
[1753655859415,1.30469938,119870.0,119860.0,0.001]
[1753655860411,1.28869938,119870.0,119860.0,0.001]
[1753655860834,1.27055938,119870.0,119860.0,0.001]
[1753655861050,1.01967712,119870.0,119860.0,0.02485]
[1753655861281,1.27055938,119870.0,119860.0,0.02485]
[1753655862432,0.99414712,119870.0,119860.0,0.06261]
[1753655862894,1.24700938,119870.0,119860.0,0.06261]
[1753655863134,1.24700938,119870.0,119860.0,0.03001]
[1753655863955,1.24700938,119870.0,119860.0,0.04631]
[1753655864153,1.24700938,119870.0,119860.0,0.06261]
[1753655864575,0.99612712,119870.0,119860.0,0.06261]
[1753655864798,1.24700938,119870.0,119860.0,0.06261]
[1753655865210,0.99612712,119870.0,119860.0,0.06261]
[1753655865738,1.24700938,119870.0,119860.0,0.06261]
[1753655867113,0.99612712,119870.0,119860.0,0.06261]
[1753655867469,1.24700938,119870.0,119860.0,0.06261]
[1753655870282,0.99612712,119870.0,119860.0,0.06261]
[1753655870464,1.25483457,119870.0,119860.0,0.06261]
[1753655871796,0.99612712,119870.0,119860.0,0.06261]
[1753655872045,1.22750036,119870.0,119860.0,0.22947133]
[1753655872291,0.9766181,119870.0,119860.0,0.23781439]
[1753655872522,0.9766181,119870.0,119860.0,0.24615738]
[1753655872748,1.22750036,119870.0,119860.0,0.24615738]
[1753655872986,1.22750036,119870.0,119860.0,0.23781439]
[1753655874422,1.22750036,119870.0,119860.0,0.22947133]
[1753655874639,1.2191582,119870.0,119860.0,0.22947133]
[1753655875312,1.2191582,119870.0,119860.0,0.23781439]
[1753655875528,1.2191582,119870.0,119860.0,0.22947133]
[1753655875747,0.96827594,119870.0,119860.0,0.23781439]
[1753655875959,1.2191582,119870.0,119860.0,0.23781439]
[1753655876574,0.96827594,119870.0,119860.0,0.23781439]
[1753655876776,1.2191582,119870.0,119860.0,0.24615738]
[1753655877255,1.22750022,119870.0,119860.0,0.22947133]
[1753655877478,0.97661796,119870.0,119860.0,0.22947133]
[1753655877705,0.80977055,119870.0,119860.0,0.2461571]
[1753655878130,0.81811285,119870.0,119860.0,0.2461571]
[1753655878370,0.80977055,119870.0,119860.0,0.25449981]
[1753655878582,0.98496026,119870.0,119860.0,0.23781432]
[1753655878804,1.23584252,119870.0,119860.0,0.23781439]
[1753655879252,1.23584252,119870.0,119860.0,0.24615738]
[1753655879464,0.98496026,119870.0,119860.0,0.23781439]
[1753655879686,1.23584252,119870.0,119860.0,0.24615738]
[1753655880558,0.98496026,119870.0,119860.0,0.24615738]
[1753655880763,1.23584252,119870.0,119860.0,0.24615738]
[1753655881046,0.98496026,119870.0,119860.0,0.24615738]
[1753655881186,1.23584252,119870.0,119860.0,0.2545003]
[1753655881393,1.23584252,119870.0,119860.0,0.24615738]
[1753655882535,1.23584252,119870.0,119860.0,0.2545003]
[1753655882742,1.23584252,119870.0,119860.0,0.24615738]
[1753655883161,0.80977055,119870.0,119860.0,0.26284315]
[1753655883370,1.23584203,119870.0,119860.0,0.2545003]
[1753655883584,0.80977013,119870.0,119860.0,0.26284301]
[1753655883796,0.72529283,119870.0,119860.0,0.26284301]
[1753655883997,0.98451725,119870.0,119860.0,0.27118558]
[1753655884134,0.98451725,119870.0,119860.0,0.27118565]
[1753655884343,1.15970689,119870.0,119860.0,0.2545003]
[1753655884651,1.15136508,119870.0,119860.0,0.2545003]
[1753655885028,0.90048282,119870.0,119860.0,0.2545003]
[1753655885232,1.15136508,119870.0,119860.0,0.2545003]
[1753655885452,1.14302306,119870.0,119860.0,0.24615738]
[1753655885666,1.1346809,119870.0,119860.0,0.22947133]
[1753655885852,1.12633867,119870.0,119860.0,0.22947133]
[1753655889002,1.12831867,119870.0,119860.0,0.22947133]
[1753655889240,0.87743641,119870.0,119860.0,0.22947133]
[1753655889475,1.23609597,119870.0,119860.0,0.001]
[1753655889912,1.23912597,119870.0,119860.0,0.001]
[1753655890598,1.23609597,119870.0,119860.0,0.001]
[1753655892026,0.98521371,119870.0,119860.0,0.001]
[1753655892437,1.23609597,119870.0,119860.0,0.001]
[1753655893290,1.23609597,119870.0,119860.0,0.0167]
[1753655893507,1.23609597,119870.0,119860.0,0.0327]
[1753655895183,1.23609597,119870.0,119860.0,0.19956133]
[1753655896414,1.23609597,119870.0,119860.0,0.22386133]
[1753655896617,1.21279597,119870.0,119860.0,0.22386133]
[1753655901630,1.22113834,119870.0,119860.0,0.22386133]
[1753655901837,0.97025608,119870.0,119860.0,0.22701133]
[1753655902075,1.22113834,119870.0,119860.0,0.22701133]
[1753655904385,0.97025608,119870.0,119860.0,0.22701133]
[1753655904604,1.22113834,119870.0,119860.0,0.22701133]
[1753655905252,0.37751081,119870.0,119860.0,0.48833651]
[1753655905458,0.369169,119870.0,119860.0,0.57304601]
[1753655905635,0.37751074,119870.0,119860.0,0.50502186]
[1753655905846,0.37751074,119870.0,119860.0,0.2541396]
[1753655907288,0.38585262,119870.0,119860.0,0.2541396]
[1753655907783,0.38585262,119870.0,119860.0,0.24579703]
[1753655908012,0.63673488,119870.0,119860.0,0.26248238]
[1753655908201,0.63673488,119870.0,119860.0,0.27082495]
[1753655908423,0.63673488,119870.0,119860.0,0.26248238]
[1753655908641,0.63673488,119870.0,119860.0,0.27082495]
[1753655908872,0.63673488,119870.0,119860.0,0.26248238]
[1753655909073,0.6450769,119870.0,119860.0,0.26248238]
[1753655909300,0.65341906,119870.0,119860.0,0.23745425]
[1753655909711,0.65341906,119870.0,119860.0,0.25413988]
[1753655909921,0.6450769,119870.0,119860.0,0.25413988]
[1753655910140,0.6450769,119870.0,119860.0,0.26248259]
[1753655911114,0.6450769,119870.0,119860.0,0.25413988]
[1753655911315,0.65341899,119870.0,119860.0,0.23745425]
[1753655911561,0.65341899,119870.0,119860.0,0.2457971]
[1753655911800,0.6450769,119870.0,119860.0,0.25413988]
[1753655912001,0.6450769,119870.0,119860.0,0.2457971]
[1753655912183,0.39419464,119870.0,119860.0,0.23745425]
[1753655912332,0.65341906,119870.0,119860.0,0.24579703]
[1753655912546,0.65341906,119870.0,119860.0,0.2457971]
[1753655912751,0.6450769,119870.0,119860.0,0.2457971]
[1753655912968,0.65341899,119870.0,119860.0,0.25413988]
[1753655913736,0.6450769,119870.0,119860.0,0.26248259]
[1753655914148,0.65341906,119870.0,119860.0,0.2457971]
[1753655914585,0.6450769,119870.0,119860.0,0.25413988]
[1753655915232,0.6450769,119870.0,119860.0,0.2457971]
[1753655915445,0.65341906,119870.0,119860.0,0.2457971]
[1753655916136,0.65341906,119870.0,119860.0,0.23745425]
[1753655916505,0.65341906,119870.0,119860.0,0.2457971]
[1753655916897,0.65341906,119870.0,119860.0,0.23745425]
[1753655917096,0.65341906,119870.0,119860.0,0.2457971]
[1753655917292,0.65341906,119870.0,119860.0,0.25413988]
[1753655917554,0.8455071,119870.0,119860.0,0.18356133]
[1753655917788,0.8455071,119870.0,119860.0,0.19906133]
[1753655918005,0.2594029,119870.0,119860.0,0.2157471]
[1753655918230,0.64698732,119870.0,119860.0,0.23826724]
[1753655918453,0.64698732,119870.0,119860.0,0.25168009]
[1753655918660,0.64698732,119870.0,119860.0,0.24333724]
[1753655918869,0.65544962,119870.0,119860.0,0.24333724]
[1753655919099,0.65544955,119870.0,119860.0,0.25168009]
[1753655919517,0.82229696,119870.0,119860.0,0.25168009]
[1753655919761,0.82229696,119870.0,119860.0,0.24333724]
[1753655919984,0.57975707,119870.0,119860.0,0.26002287]
[1753655920197,0.82229745,119870.0,119860.0,0.24333724]
[1753655920436,0.82229745,119870.0,119860.0,0.25168009]
[1753655920654,0.82229745,119870.0,119860.0,0.24333724]
[1753655920883,0.81395543,119870.0,119860.0,0.24333724]
[1753655921311,0.81395543,119870.0,119860.0,0.25168009]
[1753655921761,0.64710802,119870.0,119860.0,0.26002287]
[1753655922226,0.63876565,119870.0,119860.0,0.26002287]
[1753655922440,0.81395543,119870.0,119860.0,0.23499432]
[1753655922656,0.56307317,119870.0,119860.0,0.25168009]
[1753655922865,0.64710802,119870.0,119860.0,0.2600228]
[1753655923131,0.64710802,119870.0,119860.0,0.25168009]
[1753655923366,0.63876565,119870.0,119860.0,0.26002287]
[1753655923588,0.64710795,119870.0,119860.0,0.26002287]
[1753655924173,0.64710795,119870.0,119860.0,0.26836558]
[1753655924421,0.65545032,119870.0,119860.0,0.26002287]
[1753655924657,0.40456806,119870.0,119860.0,0.26002287]
[1753655924873,0.65545032,119870.0,119860.0,0.26002287]
[1753655925081,0.65545032,119870.0,119860.0,0.25168009]
[1753655925267,0.65545032,119870.0,119860.0,0.26002287]
[1753655925480,0.64710795,119870.0,119860.0,0.26836558]
[1753655925688,0.64710795,119870.0,119860.0,0.26002287]
[1753655926807,0.64710795,119870.0,119860.0,0.26836558]
[1753655927040,0.63876565,119870.0,119860.0,0.26836523]
[1753655927285,0.80561306,119870.0,119860.0,0.2433371]
[1753655927491,0.81395543,119870.0,119860.0,0.2433371]
[1753655927706,0.64710802,119870.0,119860.0,0.2433371]
[1753655927913,0.64710802,119870.0,119860.0,0.25167988]
[1753655928120,0.63876565,119870.0,119860.0,0.25167988]
[1753655928322,0.63876565,119870.0,119860.0,0.26836523]
[1753655928543,0.63876565,119870.0,119860.0,0.26002259]
[1753655928755,0.64710802,119870.0,119860.0,0.25167988]
[1753655928965,0.64710795,119870.0,119860.0,0.26002259]
[1753655929173,0.64698795,119870.0,119860.0,0.26002259]
[1753655929379,0.81383536,119870.0,119860.0,0.26002259]
[1753655929570,0.68547536,119870.0,119860.0,0.26002259]
[1753655929741,0.81383536,119870.0,119860.0,0.26002259]
[1753655929967,0.8054932,119870.0,119860.0,0.2433371]
[1753655931196,0.6771332,119870.0,119860.0,0.25167988]
[1753655931409,0.55461094,119870.0,119860.0,0.25167988]
[1753655931559,0.8054132,119870.0,119860.0,0.25167988]
[1753655931940,0.8054132,119870.0,119860.0,0.2433371]